bitfinex/quotes_ETHUSD_20250403
["timestamp","ask_amount","ask_price","bid_price","bid_amount"]
[1743698009018,3.0,1784.8,1784.6,11.20698]
[1743698009213,3.364,1784.7,1784.6,11.20698]
[1743698009417,3.0,1784.8,1784.7,5.60318]
[1743698012894,5.902405,1784.8,1784.7,5.60318]
[1743698013115,7.0686455,1784.8,1784.6,5.60335]
[1743698013320,3.0,1784.6,1784.4,5.60398]
[1743698013628,5.76,1784.5,1784.4,11.20799]
[1743698013796,2.95468,1784.4,1784.3,5.60438]
[1743698014122,3.0,1784.2,1784.1,5.65506]
[1743698014310,4.34627925,1784.2,1784.1,5.65506]
[1743698015433,4.7748783,1784.2,1784.1,5.65506]
[1743698015739,8.24554624,1784.2,1784.1,0.05]
[1743698015918,18.14980766,1784.2,1784.1,0.05]
[1743698016100,56.73258266,1784.2,1784.1,0.05]
[1743698016802,51.12783266,1784.2,1784.1,0.05]
[1743698017706,48.67833066,1784.2,1784.1,0.05]
[1743698017906,48.67833066,1784.2,1784.1,5.65506]
[1743698018143,12.54505766,1784.2,1784.1,5.65506]
[1743698018439,31.50756324,1784.2,1784.1,5.65506]
[1743698018617,30.76946524,1784.2,1784.1,5.65506]
[1743698018811,12.64890124,1784.2,1784.1,5.65506]
[1743698019012,14.00654624,1784.2,1784.1,5.65506]
[1743698019233,14.00654624,1784.2,1784.1,0.05]
[1743698019440,23.71616724,1784.2,1784.1,0.05]
[1743698019838,27.63016724,1784.2,1784.1,0.05]
[1743698020354,17.92054624,1784.2,1784.1,0.05]
[1743698020533,35.30534824,1784.2,1784.1,0.05]
[1743698020742,30.82304924,1784.2,1784.1,0.05]
[1743698021408,24.30143524,1784.2,1784.1,0.05]
[1743698021608,23.18143524,1784.2,1784.1,0.05]
[1743698021838,23.18143524,1784.2,1784.1,5.65506]
[1743698022036,14.00654624,1784.2,1784.1,5.65506]
[1743698022466,3.42859905,1784.2,1784.1,5.65506]
[1743698024726,7.90041905,1784.2,1784.1,0.05]
[1743698024943,52.63794405,1784.2,1784.1,0.05]
[1743698025823,14.05516905,1784.2,1784.1,0.05]
[1743698026021,47.03319405,1784.2,1784.1,0.05]
[1743698027059,19.22689805,1784.2,1784.1,0.05]
[1743698027425,8.45041905,1784.2,1784.1,0.05]
[1743698027625,24.32125405,1784.2,1784.1,0.05]
[1743698028663,29.92338105,1784.2,1784.1,0.05]
[1743698029029,24.31863105,1784.2,1784.1,0.05]
[1743698029742,22.99493105,1784.2,1784.1,0.05]
[1743698030273,18.65645005,1784.2,1784.1,0.05]
[1743698030432,11.45460005,1784.2,1784.1,0.05]
[1743698031036,7.12671905,1784.2,1784.1,0.05]
[1743698031533,7.12671905,1784.2,1784.1,5.65506]
[1743698031730,7.12671905,1784.2,1784.1,0.05]
[1743698031961,9.52371905,1784.2,1784.1,5.65506]
[1743698032438,9.52371905,1784.2,1784.1,0.05]
[1743698033759,20.65067605,1784.2,1784.1,0.05]
[1743698034343,12.88771905,1784.2,1784.1,0.05]
[1743698034863,24.91279705,1784.2,1784.1,0.05]
[1743698035448,12.88771905,1784.2,1784.1,0.05]
[1743698035759,32.26395505,1784.2,1784.1,0.05]
[1743698035958,30.86649405,1784.2,1784.1,0.05]
[1743698036155,30.86649405,1784.2,1784.1,5.65506]
[1743698036458,12.88771905,1784.2,1784.1,5.65506]
[1743698037239,12.88771905,1784.2,1784.1,0.05]
[1743698037436,22.35395705,1784.2,1784.1,0.05]
[1743698037641,24.57733374,1784.2,1784.1,0.05]
[1743698038144,25.12733374,1784.2,1784.1,0.05]
[1743698038344,31.51358374,1784.2,1784.1,0.05]
[1743698040444,38.92164107,1784.2,1784.1,0.05]
[1743698040751,33.90822507,1784.2,1784.1,0.05]
[1743698040947,33.90822507,1784.2,1784.1,5.65506]
[1743698040948,12.15359907,1784.2,1784.1,5.65506]
[1743698041152,16.13512407,1784.2,1784.1,0.05]
[1743698041747,21.09142294,1784.2,1784.1,0.05]
[1743698041964,62.75809907,1784.2,1784.1,0.05]
[1743698042339,6.914,1784.1,1783.7,5.60621]
[1743698042539,4.34820669,1783.8,1783.7,5.60618]
[1743698042756,7.34820669,1783.8,1783.7,5.60618]
[1743698042953,4.06138,1783.7,1783.5,5.60684]
[1743698043153,4.34820669,1783.6,1783.4,6.4168]
[1743698043358,3.0,1783.5,1783.0,5.60846]
[1743698043552,4.34820669,1783.4,1783.2,11.21557]
[1743698043758,10.13635502,1783.4,1783.1,6.41756]
[1743698043983,7.34820669,1783.2,1783.1,12.02569]
[1743698044444,3.44899821,1783.2,1783.1,12.02569]
[1743698044650,0.44899821,1783.2,1783.1,13.229259]
[1743698044886,8.33e-06,1783.2,1783.1,13.229259]
[1743698045086,3.0,1783.5,1783.4,5.60726]
[1743698045292,3.0,1783.5,1783.4,6.41786]
[1743698046460,3.0,1783.5,1783.4,7.62039]
[1743698046895,3.42754853,1783.5,1783.4,7.62039]
[1743698048690,3.42754853,1783.5,1783.4,5.60726]
[1743698049185,3.42754853,1783.5,1783.2,5.60784]
[1743698049388,3.0,1783.3,1783.2,5.60778]
[1743698049770,3.0,1783.7,1783.5,5.60686]
[1743698049979,13.10720669,1783.6,1783.5,11.21371]
[1743698050487,13.10720669,1783.6,1783.5,12.02271]
[1743698050670,13.10720669,1783.6,1783.5,6.41585]
[1743698051980,13.10720669,1783.6,1783.5,5.60685]
[1743698052712,18.3383518,1783.6,1783.5,5.60685]
[1743698053077,3.0,1783.5,1783.3,11.21497]
[1743698053309,4.34820669,1783.4,1783.3,11.21497]
[1743698053806,7.34820669,1783.4,1783.3,11.21497]
[1743698054003,7.34820669,1783.4,1783.3,5.60747]
[1743698054174,3.0,1783.2,1783.1,6.37131]
[1743698054375,13.10720669,1783.2,1783.1,5.60811]
[1743698054805,8.759,1783.2,1783.1,7.532559]
[1743698055575,4.34820669,1783.4,1783.3,5.60758]
[1743698055775,3.0,1783.5,1783.4,5.60726]
[1743698057485,3.0,1783.5,1783.4,6.41206]
[1743698057683,11.04632669,1783.8,1783.7,5.60632]
[1743698057903,16.80532669,1783.8,1783.7,5.60632]
[1743698058280,4.68232669,1783.8,1783.7,5.60632]
[1743698058486,10.44032669,1783.8,1783.7,5.60632]
[1743698058686,7.68232669,1783.8,1783.7,5.60632]
[1743698058891,4.34820669,1784.0,1783.9,5.60569]
[1743698059101,4.77868837,1784.0,1783.9,5.60569]
[1743698059282,13.53668837,1784.0,1783.9,5.60569]
[1743698059612,19.94251737,1784.0,1783.9,5.60569]
[1743698060384,16.90068837,1784.0,1783.9,5.60569]
[1743698060589,20.46428237,1784.0,1783.9,5.60569]
[1743698060785,19.93770237,1784.0,1783.9,5.60569]
[1743698061226,4.77868837,1784.0,1783.9,5.60569]
[1743698061418,7.83034537,1784.0,1783.9,5.60569]
[1743698061721,7.77868837,1784.0,1783.9,5.60569]
[1743698062219,10.81034537,1784.0,1783.9,5.60569]
[1743698062424,14.17434537,1784.0,1783.9,5.60569]
[1743698062613,11.95628837,1784.0,1783.9,5.60569]
[1743698063320,21.45753537,1784.0,1783.9,5.60569]
[1743698063490,14.20434537,1784.0,1783.9,5.60569]
[1743698064092,11.14268837,1784.0,1783.9,5.60569]
[1743698064288,10.84034537,1784.0,1783.9,5.60569]
[1743698064925,14.20434537,1784.0,1783.9,5.60569]
[1743698065135,6.364,1783.9,1783.8,5.606]
[1743698065289,0.55,1783.8,1783.7,5.60627]
[1743698065625,6.364,1783.7,1783.6,5.60663]
[1743698065922,16.46920669,1783.7,1783.6,5.60663]
[1743698066711,6.364,1783.5,1783.0,6.3871]
[1743698066928,6.364,1783.4,1783.2,5.60784]
[1743698067128,6.364,1783.2,1783.1,5.60809]
[1743698068215,3.0,1783.2,1783.1,5.60809]
[1743698068416,3.4171924,1783.2,1783.1,5.60809]
[1743698070833,4.2280924,1783.2,1783.0,5.60839]
[1743698071003,4.2280924,1783.2,1783.1,5.60821]
[1743698071832,4.2280924,1783.2,1783.0,5.60836]
[1743698072520,7.5920924,1783.2,1783.0,5.60836]
[1743698072724,3.0,1783.0,1782.8,5.6091]
[1743698072921,3.0,1783.0,1782.7,11.21877]
[1743698072922,10.10520669,1782.9,1782.7,11.21877]
[1743698073121,10.10520669,1782.9,1782.8,5.60915]
[1743698073122,13.10520669,1782.9,1782.8,5.60915]
[1743698073636,13.10520669,1782.9,1782.7,5.60934]
[1743698073637,13.10520669,1782.9,1782.7,11.21859]
[1743698073835,3.0,1782.8,1782.7,5.60929]
[1743698075600,3.83308963,1782.8,1782.7,5.60929]
[1743698075804,3.83308963,1782.8,1782.6,5.60977]
[1743698076109,4.34820669,1782.7,1782.6,11.21935]
[1743698076420,10.380609,1782.6,1782.5,5.61]
[1743698076632,7.68232669,1782.7,1782.5,11.21992]
[1743698076836,7.68232669,1782.7,1782.6,5.60978]
[1743698077917,8.10930136,1782.7,1782.6,5.60978]
[1743698078249,10.72391836,1782.7,1782.6,5.60978]
[1743698078751,8.10930136,1782.7,1782.6,5.60978]
[1743698079234,8.9202315,1782.7,1782.6,5.60978]
[1743698079736,5.60978,1782.6,1782.5,5.61006]
[1743698079937,9.4702315,1782.7,1782.5,5.61006]
[1743698080107,9.4702315,1782.7,1782.5,11.21998]
[1743698080438,9.4702315,1782.7,1782.6,5.60978]
[1743698081407,8.65930136,1782.7,1782.6,5.60978]
[1743698082354,8.65930136,1782.7,1782.5,5.60992]
[1743698083019,8.65930136,1782.7,1782.6,5.60978]
[1743698083921,3.0,1782.6,1782.5,5.60992]
[1743698084341,6.364,1782.6,1782.5,5.60992]
[1743698085563,5.60992,1782.5,1782.3,5.61061]
[1743698085713,8.757,1782.4,1782.2,5.61095]
[1743698086442,12.121,1782.4,1782.1,11.2225]
[1743698086639,12.121,1782.4,1782.2,5.61092]
[1743698086827,12.121,1782.4,1782.2,5.61091]
[1743698087006,4.34820669,1782.3,1782.1,5.61132]
[1743698087212,3.0,1782.2,1782.1,5.61135]
[1743698089323,6.364,1782.2,1782.0,5.61163]
[1743698089523,6.364,1782.2,1782.0,11.22317]
[1743698089723,6.364,1782.2,1782.0,5.61154]
[1743698090053,6.364,1782.2,1782.0,11.22306]
[1743698090246,7.34820669,1782.1,1782.0,11.22306]
[1743698090944,7.76449211,1782.1,1782.0,12.345366]
[1743698091143,3.41628542,1782.1,1782.0,12.345366]
[1743698091731,3.41628542,1782.1,1782.0,5.61152]
[1743698092731,8.39422342,1782.1,1782.0,5.61152]
[1743698093462,8.39422342,1782.1,1781.2,0.758]
[1743698093463,3.0,1781.5,1781.2,0.758]
[1743698093673,7.34820669,1781.4,1781.3,5.61373]
[1743698093959,3.0,1781.4,1781.3,7.373739]
[1743698096275,3.4134538,1781.4,1781.3,7.373739]
[1743698096436,3.4134538,1781.4,1781.3,8.189139]
[1743698097165,3.0,1781.4,1781.3,8.24527209]
[1743698097348,5.757,1781.8,1781.7,6.40011]
[1743698098238,10.90442067,1781.8,1781.3,2.520309]
[1743698098439,6.17462372,1781.8,1781.7,5.61261]
[1743698098641,10.52283041,1781.8,1781.7,5.61261]
[1743698099237,13.52283041,1781.8,1781.7,5.61261]
[1743698099434,3.7871,1781.7,1781.1,1e-05]
[1743698099739,3.7871,1781.7,1780.6,4.34820669]
[1743698099740,6.364,1780.8,1780.7,5.61548]
[1743698099939,5.785,1780.8,1780.6,5.61589]
[1743698100139,3.0,1780.7,1780.6,5.61589]
[1743698100343,3.02915071,1780.7,1780.6,5.61608]
[1743698100586,5.92735071,1780.7,1780.6,5.61608]
[1743698100752,3.02915071,1780.7,1780.6,5.61608]
[1743698101292,11.62277247,1780.7,1780.2,6.41793]
[1743698101517,3.0,1780.4,1780.3,5.61688]
[1743698101794,8.778,1780.4,1780.3,5.61688]
[1743698101976,8.80715071,1780.4,1780.3,5.61688]
[1743698102496,0.02915071,1780.4,1780.3,5.61688]
[1743698102677,0.02915071,1780.4,1780.3,6.82036]
[1743698103078,0.45956284,1780.4,1780.3,6.82036]
[1743698103372,0.02915071,1780.4,1780.3,6.82036]
[1743698103788,7.1e-07,1780.4,1780.3,7.63636]
[1743698104113,3.29177152,1780.9,1780.8,6.43145]
[1743698104313,0.71510491,1780.9,1780.8,6.43145]
[1743698104522,0.71510491,1780.9,1780.8,7.636159]
[1743698104671,0.29177152,1780.9,1780.8,7.636159]
[1743698105183,3.0,1781.2,1781.1,5.6145]
[1743698106001,5.775,1781.3,1781.2,5.61419]
[1743698106176,6.19053836,1781.3,1781.2,5.61419]
[1743698106503,3.41553836,1781.3,1781.2,5.61419]
[1743698106906,3.0,1781.2,1781.1,5.6145]
[1743698107398,4.320348,1781.2,1781.0,5.61471]
[1743698107598,3.41553836,1781.3,1781.0,5.61468]
[1743698107804,6.364,1781.0,1780.6,5.61608]
[1743698108102,3.0,1780.8,1780.6,5.61608]
[1743698108301,2.7006,1780.7,1780.6,11.23197]
[1743698108671,2.7006,1780.7,1780.6,5.61589]
[1743698110010,3.42242424,1780.8,1780.7,5.61576]
[1743698110412,0.42242424,1780.8,1780.7,7.528525]
[1743698110613,0.74965836,1781.3,1781.1,5.61437]
[1743698110908,8.775,1781.2,1781.1,5.61437]
[1743698111112,12.760324,1781.2,1781.1,5.61437]
[1743698111904,8.775,1781.2,1781.1,5.61437]
[1743698112106,3.0,1781.1,1781.0,5.61469]
[1743698112279,5.775,1781.2,1781.1,5.6145]
[1743698112479,13.629911,1781.2,1781.1,5.6145]
[1743698112679,16.629911,1781.2,1781.1,5.6145]
[1743698113196,15.091201,1781.2,1781.1,5.6145]
[1743698113510,11.446829,1781.2,1781.1,5.6145]
[1743698113712,5.671829,1781.2,1781.1,5.6145]
[1743698113883,0.42735329,1781.2,1781.1,7.531119]
[1743698114081,11.3746,1781.4,1781.1,6.737419]
[1743698114290,11.3746,1781.4,1781.1,11.22886]
[1743698114291,12.61093,1781.3,1781.1,11.22886]
[1743698114607,3.0,1781.3,1781.1,11.22886]
[1743698115108,5.020734,1781.2,1781.1,5.61436]
[1743698115313,3.7677,1781.3,1781.1,5.61436]
[1743698115516,3.569394,1781.2,1781.1,5.61436]
[1743698116516,4.72057,1781.3,1781.2,5.61419]
[1743698116517,3.0,1781.3,1781.2,5.61419]
[1743698116729,4.610989,1781.3,1781.2,5.61419]
[1743698116925,0.42384947,1781.3,1781.2,5.61419]
[1743698117230,5.761,1781.4,1781.3,5.61387]
[1743698117430,5.761,1781.4,1781.2,5.61419]
[1743698117732,3.18037,1781.3,1781.2,5.61419]
[1743698118821,5.761,1781.4,1781.2,5.61419]
[1743698119149,5.761,1781.4,1781.2,5.61417]
[1743698119697,4.837482,1781.2,1780.9,0.7937]
[1743698120028,6.77575874,1781.3,1781.2,5.44421]
[1743698120336,10.19119974,1781.3,1781.2,5.44421]
[1743698120931,6.77575874,1781.3,1781.2,5.44421]
[1743698121133,9.92709974,1781.3,1781.1,11.22892]
[1743698121336,6.77575874,1781.3,1781.1,5.61446]
[1743698121537,4.967871,1781.2,1781.1,5.61446]
[1743698122537,0.41175874,1781.3,1781.2,5.61419]
[1743698122733,3.394918,1781.3,1781.1,5.61445]
[1743698123040,3.0,1781.2,1781.0,5.61467]
[1743698123215,6.664,1781.1,1781.0,5.61467]
[1743698123404,6.364,1781.1,1781.0,5.61467]
[1743698123828,9.0976,1781.1,1781.0,5.61467]
[1743698124036,6.364,1781.1,1781.0,5.61467]
[1743698124537,3.0,1781.1,1781.0,5.61467]
[1743698125106,3.0,1781.1,1781.0,6.43157]
[1743698125433,3.0,1781.1,1781.0,7.63624]
[1743698125837,0.42118167,1781.3,1781.2,5.61419]
[1743698126028,3.0,1781.4,1781.3,5.61387]
[1743698126814,3.0,1781.4,1781.2,11.22824]
[1743698127139,2.682714,1781.2,1781.1,5.61439]
[1743698127454,6.364,1781.2,1781.1,5.61439]
[1743698127697,10.29483,1781.2,1781.1,5.61439]
[1743698127959,3.0,1781.2,1781.1,5.61439]
[1743698128158,3.0,1781.2,1781.1,6.37659]
[1743698128747,3.41212355,1781.4,1781.3,5.61387]
[1743698128947,10.953494,1781.4,1781.3,5.61387]
[1743698130030,10.953494,1781.4,1781.2,5.61405]
[1743698130229,8.76,1781.4,1781.3,5.61387]
[1743698130443,13.84861142,1781.4,1781.3,5.61387]
[1743698130621,12.63787742,1781.4,1781.3,5.61387]
[1743698130819,12.31548342,1781.4,1781.3,5.61387]
[1743698131019,15.67948342,1781.4,1781.1,5.61434]
[1743698131330,12.55154342,1781.4,1781.1,11.22872]
[1743698131525,12.55154342,1781.4,1781.2,5.61418]
[1743698131726,9.18754342,1781.4,1781.3,5.61387]
[1743698132938,0.42754342,1781.4,1781.3,7.6008099]
[1743698133123,0.33412,1781.6,1781.5,5.61324]
[1743698133324,5.76,1781.7,1781.6,5.61293]
[1743698133535,5.654336,1781.6,1781.5,5.61324]
[1743698133719,11.956461,1781.6,1781.4,5.61348]
[1743698133925,3.0,1781.6,1781.4,5.61348]
[1743698134123,3.0,1781.6,1781.3,5.61374]
[1743698134124,4.061333,1781.5,1781.3,5.61374]
[1743698134322,0.43122766,1781.5,1781.3,5.61374]
[1743698134523,3.0,1781.4,1781.2,5.61419]
[1743698134741,8.76,1781.3,1781.2,5.61419]
[1743698135139,3.0,1781.3,1781.2,5.61419]
[1743698137154,3.0,1781.3,1781.1,11.22876]
[1743698137328,3.0,1781.3,1780.9,6.41981]
[1743698137529,3.0,1781.3,1781.1,5.61434]
[1743698137717,3.0,1781.3,1781.2,5.61419]
[1743698138352,8.76,1781.3,1781.2,5.61419]
[1743698139854,3.0,1781.2,1781.1,5.61434]
[1743698140157,5.77654,1781.2,1781.1,5.61434]
[1743698141056,3.0,1781.2,1781.1,5.61434]
[1743698141270,3.0,1781.2,1781.1,6.737249]
[1743698141421,8.76,1781.3,1781.2,5.61419]
[1743698143566,3.0,1781.3,1781.2,6.42129]
[1743698143738,3.0,1781.3,1781.2,5.61419]
[1743698144933,3.0,1781.1,1781.0,5.6147]
[1743698145150,7.24,1781.3,1781.0,5.61467]
[1743698145458,7.24,1781.3,1781.0,11.22939]
[1743698145659,7.24,1781.3,1781.0,5.61467]
[1743698145854,12.85396,1781.3,1781.0,5.61477]
[1743698146060,3.71629887,1781.2,1781.0,5.61477]
[1743698146237,3.71629887,1781.2,1780.9,11.23009]
[1743698146559,3.71629887,1781.2,1781.0,5.61478]
[1743698147356,3.0,1781.2,1781.0,11.22947]
[1743698147531,3.0,1781.2,1781.0,5.61469]
[1743698148382,11.97829,1781.2,1780.8,5.61528]
[1743698148674,2.376983,1780.8,1780.6,5.61594]
[1743698148861,2.376983,1780.8,1780.5,5.61633]
[1743698148862,12.124,1780.7,1780.5,5.61633]
[1743698149028,12.124,1780.7,1780.4,6.4477]
[1743698149229,8.76,1780.7,1780.4,12.06418]
[1743698149430,8.76,1780.7,1780.5,5.61638]
[1743698149970,8.76,1780.7,1780.5,11.2325]
[1743698150131,8.76,1780.7,1780.6,5.61608]
[1743698151265,8.76,1780.8,1780.7,5.6155]
[1743698151964,3.0,1780.8,1780.7,5.6155]
[1743698152165,8.76,1780.8,1780.7,5.6155]
[1743698152349,3.0,1780.8,1780.7,5.6155]
[1743698152551,3.0,1780.8,1780.7,8.121547]
[1743698158754,3.0,1780.8,1780.7,6.4368]
[1743698163478,3.02691305,1780.8,1780.7,6.4368]
[1743698165190,3.02691305,1780.8,1780.7,5.6155]
[1743698165361,3.0,1780.7,1780.6,5.61594]
[1743698165558,9.06269131,1780.7,1780.6,5.61594]
[1743698166149,9.5666,1780.7,1780.5,5.61628]
[1743698166502,9.5666,1780.7,1780.6,5.61608]
[1743698166962,8.76,1780.7,1780.6,5.61608]
[1743698168401,16.61927,1780.7,1780.4,5.6167]
[1743698168549,12.9497,1780.7,1780.4,5.6167]
[1743698168749,0.02691305,1780.6,1780.4,5.6167]
[1743698169042,6.39091305,1780.6,1780.4,5.6167]
[1743698169274,6.39091305,1780.6,1780.1,6.46705]
[1743698169489,0.7803,1780.2,1780.1,0.05]
[1743698169697,9.5403,1780.2,1780.1,0.05]
[1743698170002,18.54855305,1780.2,1780.1,0.05]
[1743698170297,46.32236405,1780.2,1780.1,0.05]
[1743698170593,38.88997773,1780.2,1780.1,0.05]
[1743698170796,24.14863773,1780.2,1780.1,0.05]
[1743698170942,3.44567273,1780.2,1780.1,5.66766]
[1743698171666,3.44567273,1780.2,1780.1,0.05]
[1743698172183,4.22597273,1780.2,1780.1,0.05]
[1743698172484,3.44567273,1780.2,1780.1,5.66766]
[1743698173588,3.44567273,1780.2,1780.1,7.616705]
[1743698173907,3.02691305,1780.2,1780.1,7.67287465]
[1743698174074,3.02691305,1780.2,1780.1,7.616705]
[1743698174598,3.45511242,1780.2,1780.1,5.66766]
[1743698174795,3.45511242,1780.2,1780.1,0.05]
[1743698174998,4.27901242,1780.2,1780.1,0.05]
[1743698175383,4.27901242,1780.2,1780.1,5.66766]
[1743698175590,9.21611242,1780.2,1780.1,5.66766]
[1743698176311,9.21611242,1780.2,1780.1,7.438834]
[1743698177996,3.02691305,1780.2,1780.1,7.438834]
[1743698178979,3.02691305,1780.2,1780.1,5.66766]
[1743698179706,4.23038633,1780.2,1780.1,5.66766]
[1743698181009,3.43848633,1780.2,1780.1,5.66766]
[1743698181178,3.43848633,1780.2,1780.1,6.50026]
[1743698181179,3.02691305,1780.2,1780.1,6.50026]
[1743698181607,3.44312306,1780.2,1780.1,5.66766]
[1743698182307,4.54493537,1780.2,1780.1,5.66766]
[1743698182508,13.66993537,1780.2,1780.1,0.05]
[1743698182876,25.87427537,1780.2,1780.1,0.05]
[1743698183082,20.74474237,1780.2,1780.1,0.05]
[1743698184023,19.45400837,1780.2,1780.1,0.05]
[1743698184188,19.45400837,1780.2,1780.1,5.66766]
[1743698184392,9.20412306,1780.2,1780.1,5.66766]
[1743698184822,9.20412306,1780.2,1780.1,0.05]
[1743698184823,13.34052306,1780.2,1780.1,0.05]
[1743698185334,13.34052306,1780.2,1780.1,5.66766]
[1743698186028,9.20412306,1780.2,1780.1,5.66766]
[1743698188836,3.44312306,1780.2,1780.1,5.66766]
[1743698189331,3.44312306,1780.2,1780.1,8.140993]
[1743698189484,3.02691305,1780.2,1780.1,8.140993]
[1743698189994,0.02691305,1780.2,1780.1,8.140993]
[1743698190632,0.02691305,1780.2,1779.1,5.67059]
[1743698190812,3.374,1779.7,1779.2,0.8254]
[1743698191112,3.0,1779.6,1779.5,5.6193]
[1743698191286,3.02691305,1779.6,1779.5,5.6193]
[1743698192312,8.400604,1779.5,1779.4,5.61974]
[1743698192514,7.1664,1779.5,1779.3,5.62008]
[1743698192833,7.19331305,1779.5,1779.3,11.24007]
[1743698193032,7.19331305,1779.5,1779.4,5.61987]
[1743698193189,7.19331305,1779.5,1779.3,11.23998]
[1743698193389,7.62382893,1779.5,1779.3,5.61999]
[1743698193591,8.38621182,1779.5,1779.3,5.61999]
[1743698194205,5.01221182,1779.5,1779.3,11.24002]
[1743698194400,5.01221182,1779.5,1779.3,5.61999]
[1743698194732,4.24982893,1779.5,1779.4,5.61987]
[1743698195032,3.45742893,1779.5,1779.4,5.61987]
[1743698197214,0.45742893,1779.5,1779.4,5.61987]
[1743698197414,0.02691305,1779.5,1779.4,5.61987]
[1743698197614,5.828,1779.9,1779.8,5.6186]
[1743698197807,8.828,1779.9,1779.8,5.6186]
[1743698198014,4.7949,1780.1,1779.9,5.61816]
[1743698198241,9.826,1780.1,1780.0,5.61797]
[1743698198519,6.6044,1780.5,1780.4,5.61671]
[1743698198721,11.02635616,1780.5,1780.4,5.61671]
[1743698198920,10.02635616,1780.5,1780.4,5.61671]
[1743698199139,7.02635616,1780.5,1780.4,5.61671]
[1743698199670,0.42195616,1780.5,1780.4,5.61671]
[1743698199812,0.8163,1780.8,1780.7,5.61576]
[1743698200011,8.786594,1780.8,1780.7,5.61576]
[1743698200208,5.61576,1780.7,1780.4,5.61671]
[1743698200441,5.61576,1780.7,1780.4,5.6166]
[1743698200442,3.41722172,1780.7,1780.4,5.6166]
[1743698200629,0.34172217,1780.6,1780.4,5.6166]
[1743698200829,3.0,1780.5,1780.4,5.6166]
[1743698201121,3.0,1780.5,1780.3,5.61697]
[1743698201444,3.0,1780.5,1780.3,11.23384]
[1743698201847,3.0,1780.5,1780.3,5.61687]
[1743698202011,3.91757222,1780.5,1780.2,11.23451]
[1743698202218,0.8286,1780.4,1780.3,5.61703]
[1743698202418,3.0,1780.5,1780.3,11.23406]
[1743698202815,3.0,1780.5,1780.3,5.61703]
[1743698203125,3.0,1780.5,1780.3,5.61686]
[1743698203860,3.0,1780.5,1780.3,5.61688]
[1743698204261,3.0,1780.5,1780.3,11.23376]
[1743698204418,3.0,1780.4,1780.3,5.61688]
[1743698207061,3.0,1780.5,1780.2,5.61721]
[1743698207270,0.3,1780.4,1780.2,5.61721]
[1743698207933,5.91673,1780.4,1780.1,5.61766]
[1743698208135,6.37334,1780.3,1780.0,5.61787]
[1743698208366,6.37334,1780.3,1779.7,5.61892]
[1743698208367,3.0,1780.1,1779.7,5.61892]
[1743698208571,8.801,1780.2,1780.1,5.61766]
[1743698208728,9.75673,1780.2,1780.0,5.61785]
[1743698208920,8.801,1780.2,1780.0,11.23571]
[1743698209127,8.801,1780.2,1780.0,5.61785]
[1743698209542,8.801,1780.2,1779.9,11.23638]
[1743698209747,8.801,1780.2,1779.9,5.61813]
[1743698209949,8.801,1780.2,1780.0,5.61797]
[1743698210154,8.801,1780.2,1780.1,5.61766]
[1743698211005,9.22320635,1780.2,1780.1,5.61766]
[1743698211670,2.359,1780.1,1779.9,5.61828]
[1743698211876,10.22115698,1780.2,1779.9,11.23641]
[1743698212805,10.22115698,1780.2,1779.9,11.23627]
[1743698212963,10.22115698,1780.2,1779.9,5.61813]
[1743698213163,15.83852698,1780.2,1779.9,5.61813]
[1743698213475,10.22115698,1780.2,1779.9,5.61812]
[1743698213877,10.22115698,1780.2,1779.9,11.23627]
[1743698214390,10.22115698,1780.2,1779.9,5.61812]
[1743698214595,15.83855698,1780.2,1779.8,5.61835]
[1743698214902,10.22115698,1780.2,1780.0,5.61796]
[1743698215103,3.42220635,1780.2,1780.1,5.61766]
[1743698215277,9.21320635,1780.2,1780.1,5.61766]
[1743698216207,9.21320635,1780.2,1779.9,5.61822]
[1743698216405,14.83056635,1780.2,1779.9,5.61822]
[1743698216565,9.21320635,1780.2,1779.9,5.61813]
[1743698216764,14.83057635,1780.2,1779.9,5.61813]
[1743698217203,14.83057635,1780.2,1779.9,11.23627]
[1743698217393,14.83057635,1780.2,1779.9,5.61813]
[1743698217868,20.44809635,1780.2,1779.8,5.61855]
[1743698218268,20.44809635,1780.2,1779.8,5.61851]
[1743698219017,14.83057635,1780.2,1779.8,5.61846]
[1743698219166,14.83057635,1780.2,1779.9,5.61815]
[1743698219569,4.316138,1779.9,1779.8,5.61846]
[1743698219862,8.61811,1780.0,1779.6,5.61916]
[1743698220061,8.61869,1779.8,1779.5,5.61949]
[1743698220261,0.02914543,1779.7,1779.4,5.61987]
[1743698220465,0.02914543,1779.7,1779.4,11.23974]
[1743698220667,0.02914543,1779.7,1779.5,5.61952]
[1743698220967,0.44862502,1779.7,1779.6,5.61924]
[1743698221198,0.02914543,1779.7,1779.6,5.61924]
[1743698221819,0.02914543,1779.7,1779.6,7.529102]
[1743698224936,0.45069553,1779.7,1779.6,7.529102]
[1743698225438,0.02914543,1779.7,1779.6,7.529102]
[1743698228642,0.02914543,1779.7,1779.6,7.58528318]
[1743698228857,5.43e-06,1779.7,1779.6,7.529102]
[1743698229201,9.18520635,1780.2,1780.1,5.61766]
[1743698233037,3.42220635,1780.2,1780.1,6.818099]
[1743698233238,0.42220635,1780.2,1780.1,6.818099]
[1743698233547,6.5321,1780.6,1780.4,5.61654]
[1743698233747,3.0,1780.5,1780.4,11.23312]
[1743698233908,7.36536342,1780.5,1780.4,11.23312]
[1743698234103,7.36536342,1780.5,1780.4,5.61654]
[1743698234347,5.762,1780.6,1780.3,0.7987]
[1743698234517,7.73936342,1780.5,1780.4,5.61671]
[1743698234816,7.36536342,1780.5,1780.4,5.61671]